bitfinex-derivatives/quotes_ETHF0:USTF0_20250314
["timestamp","ask_amount","ask_price","bid_price","bid_amount"]
[1741912676421,3.16958,1871.3,1871.2,1.47144889]
[1741912676621,2.1004,1871.3,1871.2,1.47144889]
[1741912676816,3.16958,1871.3,1871.2,1.47144889]
[1741912677022,2.1004,1871.3,1871.2,2.80677458]
[1741912677223,3.16958,1871.3,1871.2,2.80677458]
[1741912678323,3.16958,1871.3,1871.2,3.3967008]
[1741912678526,3.16958,1871.3,1871.2,2.80677458]
[1741912678930,3.16958,1871.3,1871.2,1.3354]
[1741912679231,3.16958,1871.3,1871.2,2.80680524]
[1741912680733,3.16958,1871.3,1871.2,2.80670134]
[1741912682226,23.7078,1871.9,1871.2,4.5432]
[1741912682429,0.7206,1871.8,1871.3,7.43003878]
[1741912682735,2.427,1872.2,1871.6,3.817303]
[1741912683038,2.49083,1871.9,1871.8,3.2078]
[1741912683235,2.49083,1871.9,1871.4,0.66620897]
[1741912683236,7.0568,1871.9,1871.4,0.66620897]
[1741912683428,2.8281,1871.8,1871.4,0.00800897]
[1741912683622,2.47267,1871.7,1871.5,2.48155]
[1741912683825,1.4244,1871.8,1871.4,0.00800897]
[1741912684026,1.06906,1871.5,1871.4,1.42050897]
[1741912684332,1.4244,1871.8,1871.4,2.90875164]
[1741912684634,0.7206,1871.8,1871.6,3.2078]
[1741912684932,0.7206,1871.8,1871.7,1.06895]
[1741912685128,3.4948,1872.0,1871.7,2.31095926]
[1741912685129,2.426,1872.0,1871.7,2.31095926]
[1741912685330,3.1151,1872.1,1872.0,1.06878]
[1741912685536,3.1151,1872.1,1871.9,1.06879]
[1741912685726,3.1151,1872.1,1871.9,2.48129]
[1741912685927,4.18384,1872.1,1871.9,2.48129]
[1741912686121,3.1151,1872.1,1872.0,1.06878]
[1741912686327,0.7038,1872.2,1872.0,4.6321]
[1741912686527,0.6891,1872.5,1872.1,1.0687]
[1741912686735,2.426,1872.4,1872.1,2.493]
[1741912687336,1.06862,1872.3,1872.1,1.4243]
[1741912687536,2.426,1872.4,1872.0,3.2078]
[1741912687728,8.30524,1872.4,1871.8,1.4144]
[1741912687928,5.6338,1872.4,1871.8,1.4144]
[1741912688130,1.06874,1872.1,1871.9,1.4243]
[1741912688330,1.06869,1872.2,1871.9,2.49312]
[1741912688630,1.06888,1871.9,1871.7,3.2078]
[1741912688832,2.426,1871.9,1871.5,3.2078]
[1741912689037,1.06897,1871.7,1871.5,3.2078]
[1741912689231,1.06897,1871.7,1871.5,4.6321]
[1741912689930,1.06892,1871.8,1871.5,5.70116]
[1741912690131,1.06892,1871.8,1871.6,1.3121]
[1741912690332,1.06895,1871.7,1871.6,1.3121]
[1741912690937,1.069,1871.7,1871.5,3.2078]
[1741912691137,1.069,1871.7,1871.5,4.5199]
[1741912691342,1.06891,1871.8,1871.5,4.5199]
[1741912691533,1.06891,1871.8,1871.6,1.3121]
[1741912691738,2.426,1871.9,1871.6,1.3121]
[1741912691932,1.06889,1871.8,1871.6,1.3121]
[1741912692538,2.426,1871.9,1871.6,1.3121]
[1741912692741,3.49485,1871.9,1871.6,2.38109]
[1741912692934,3.49485,1871.9,1871.6,1.3121]
[1741912693135,3.49485,1871.9,1871.7,1.3804]
[1741912693740,2.426,1871.9,1871.7,1.3804]
[1741912694435,1.31,1871.8,1871.7,1.3804]
[1741912695238,2.426,1871.9,1871.7,1.3804]
[1741912695434,2.426,1871.9,1871.7,5.65713]
[1741912695742,1.3864,1871.8,1871.7,4.5882]
[1741912695945,1.3864,1871.8,1871.7,5.14939541]
[1741912697847,1.3864,1871.8,1871.7,5.14930703]
[1741912699045,2.45529,1871.8,1871.7,0.56110703]
[1741912699346,1.06906,1871.5,1871.4,0.00800897]
[1741912700044,2.39496,1871.5,1871.4,0.00800897]
[1741912702247,2.39496,1871.5,1871.4,1.40250897]
[1741912703037,2.39496,1871.5,1871.4,0.00800897]
[1741912704344,1.3259,1871.5,1871.4,0.00800897]
[1741912704745,2.39496,1871.5,1871.4,1.39900897]
[1741912707148,2.39496,1871.5,1871.4,0.00800897]
[1741912707350,1.3259,1871.5,1871.0,1.391]
[1741912707547,1.06946,1870.8,1870.6,27.1988]
[1741912707749,1.06946,1870.8,1870.7,1.95408581]
[1741912707949,2.426,1871.0,1870.7,3.02358581]
[1741912708257,3.49539,1871.0,1870.8,1.3917]
[1741912708455,1.06941,1870.9,1870.8,1.3917]
[1741912708654,3.50339897,1871.0,1870.8,2.46116]
[1741912709052,3.50339897,1871.0,1870.9,1.3917]
[1741912709656,1.07739897,1871.0,1870.9,1.3917]
[1741912709855,0.00800897,1871.0,1870.9,1.3917]
[1741912710156,0.00800897,1871.0,1870.9,2.46111]
[1741912711357,1.07735897,1871.0,1870.9,1.3917]
[1741912711661,0.00800897,1871.0,1870.9,2.46111]
[1741912712959,0.00800897,1871.0,1870.9,3.02231802]
[1741912713360,0.00800897,1871.0,1870.9,3.02227728]
[1741912717555,3.2078,1871.7,1871.0,2.67334]
[1741912717756,3.49494,1871.8,1871.5,1.06901]
[1741912717957,2.426,1871.8,1871.7,1.06895]
[1741912718364,2.426,1871.8,1871.7,2.42705]
[1741912718562,4.2765,1872.2,1871.9,1.06879]
[1741912718755,4.2765,1872.2,1872.0,2.42688]
[1741912719561,1.06878,1872.0,1871.9,0.00800897]
[1741912719964,1.06878,1872.0,1871.9,1.41920897]
[1741912720163,1.4137,1872.1,1871.9,1.41920897]
[1741912720671,1.4137,1872.1,1871.9,2.48802897]
[1741912721060,1.4137,1872.1,1872.0,2.47998]
[1741912721255,1.4137,1872.1,1872.0,1.4112]
[1741912721457,2.48242,1872.1,1872.0,1.4112]
[1741912721658,1.4137,1872.1,1872.0,1.4112]
[1741912724163,1.4137,1872.1,1872.0,2.47998]
[1741912724363,2.7411,1872.1,1872.0,2.47998]
[1741912724777,2.7411,1872.1,1872.0,1.4112]
[1741912724960,2.7411,1872.1,1872.0,2.47998]
[1741912725271,4.27627,1872.6,1872.3,1.06856]
[1741912725455,3.7534,1872.5,1872.4,1.3416]
[1741912725660,4.82189,1872.5,1872.2,3.2078]
[1741912725861,1.3211,1872.4,1872.2,5.64254]
[1741912726058,2.0414,1872.4,1872.2,5.64254]
[1741912726463,1.3211,1872.3,1872.2,5.64254]
[1741912726662,2.38971,1872.3,1872.2,4.5739]
[1741912726869,1.3211,1872.3,1872.2,4.5739]
[1741912727065,2.38971,1872.3,1872.2,3.2078]
[1741912727574,1.3211,1872.3,1872.2,3.2078]
[1741912727771,1.3211,1872.3,1872.2,2.43476]
[1741912729568,1.3211,1872.3,1872.2,1.3661]
[1741912729772,1.3211,1872.3,1872.1,4.99008]
[1741912729972,2.38971,1872.3,1872.1,1.78228]
[1741912730475,1.3817,1872.2,1872.1,1.78228]
[1741912730774,2.45039,1872.2,1872.0,1.3154]
[1741912730970,1.3817,1872.2,1872.0,1.3154]
[1741912731175,1.3817,1872.1,1871.9,0.67840897]
[1741912731375,1.06878,1872.0,1871.9,0.67840897]
[1741912731569,2.45046,1872.1,1871.9,0.67840897]
[1741912731769,1.06878,1872.0,1871.9,0.67840897]
[1741912732070,2.47138,1872.0,1871.9,0.00800897]
[1741912732270,2.47138,1872.0,1871.7,0.6624]
[1741912732271,8.4798,1872.0,1871.3,3.2078]
[1741912732462,1.06911,1871.5,1871.3,3.2078]
[1741912732669,2.425,1871.7,1871.3,3.2078]
[1741912732869,1.4026,1871.4,1871.3,5.67398]
[1741912733176,1.4026,1871.4,1871.3,4.27698]
[1741912733373,0.6863,1871.6,1871.4,1.0691]
[1741912733676,1.41060897,1871.5,1871.4,1.0691]
[1741912734577,1.41060897,1871.5,1871.3,4.27693]
[1741912734780,1.06912,1871.4,1871.3,3.2078]
[1741912735083,2.47968897,1871.5,1871.3,4.27695]
[1741912735476,1.4203,1871.4,1871.3,4.27695]
[1741912738380,1.4203,1871.4,1871.3,4.27698]
[1741912738777,0.00800897,1871.5,1871.4,1.06912]
[1741912739073,1.34830897,1871.5,1871.4,1.72392]
[1741912739679,1.06912,1871.4,1871.3,3.2078]
[1741912739878,1.06912,1871.4,1871.2,1.07721897]
[1741912739879,1.06918,1871.3,1871.2,0.00800897]
[1741912740180,1.0694,1871.0,1870.7,1.7671]
[1741912740378,1.3403,1870.9,1870.7,1.7671]
[1741912740678,1.3403,1870.9,1870.7,4.9749]
[1741912742276,1.3403,1870.9,1870.7,3.9054]
[1741912742489,1.3403,1870.9,1870.8,1.06946]
[1741912742691,1.3403,1870.9,1870.7,4.97487]
[1741912743689,1.3403,1870.9,1870.8,1.06946]
[1741912744287,3.49431,1871.1,1870.9,1.06937]
[1741912744585,2.425,1871.1,1871.0,1.3756]
[1741912744791,2.425,1871.1,1871.0,2.44495]
[1741912745185,0.7039,1871.2,1871.1,1.06929]
[1741912745393,1.77315,1871.2,1871.0,1.06931]
[1741912745583,1.77315,1871.2,1871.0,2.44491]
[1741912745584,1.3841,1871.1,1871.0,2.44491]
[1741912745893,1.3841,1871.1,1871.0,1.06931]
[1741912746083,1.3841,1871.1,1870.9,3.2078]
[1741912746284,1.3841,1871.1,1871.0,1.3756]
[1741912746486,1.3841,1871.1,1871.0,2.44495]
[1741912747502,0.6993,1871.4,1871.3,1.06918]
[1741912747794,2.0935,1871.4,1871.3,1.06918]
[1741912747992,0.00800897,1871.5,1871.4,1.06912]
[1741912748185,0.00800897,1871.5,1871.4,4.27692]
[1741912748385,0.00800897,1871.5,1871.4,4.83608574]
[1741912749492,0.00800897,1871.5,1871.4,4.83617517]
[1741912749795,1.06912,1871.4,1871.3,1.3187]
[1741912749996,2.49702,1871.4,1871.3,1.3187]
[1741912750197,1.4279,1871.4,1871.3,2.38788]
[1741912751191,0.00800897,1871.5,1871.3,1.3187]
[1741912751496,0.00800897,1871.5,1871.4,6.25818235]
[1741912754004,1.4227,1871.8,1871.7,1.06895]
[1741912754192,1.4227,1871.8,1871.7,4.27675]
[1741912754696,2.425,1872.0,1871.9,1.06883]
[1741912754898,1.78236,1872.1,1871.9,1.06883]
[1741912755099,1.4227,1872.0,1871.9,1.06883]
[1741912755688,0.00800897,1872.1,1871.9,3.76727496]
[1741912755893,0.00800897,1872.1,1872.0,3.79708]
[1741912757299,0.00800897,1872.1,1872.0,1.3859]
[1741912757499,0.00800897,1872.1,1872.0,2.45468]
[1741912757700,1.45260897,1872.1,1872.0,2.45468]
[1741912757893,1.45260897,1872.1,1872.0,1.3859]
[1741912758097,2.52135897,1872.1,1871.9,1.06883]
[1741912758294,1.06879,1872.0,1871.8,2.46357897]
[1741912758498,1.4446,1871.9,1871.8,2.46357897]
[1741912758700,1.4446,1871.9,1871.8,3.02344633]
[1741912759090,0.00800897,1872.1,1872.0,1.06878]
[1741912759296,0.00800897,1872.1,1872.0,4.83626623]
[1741912760694,0.00800897,1872.1,1872.0,6.16536623]
[1741912761299,0.00800897,1872.1,1872.0,5.60568]
[1741912761503,0.00800897,1872.1,1872.0,3.2078]
[1741912761695,1.77285897,1872.1,1871.9,1.06881]
[1741912761902,1.3764,1872.0,1871.9,1.06881]
[1741912762107,1.3764,1872.0,1871.9,2.38841]
[1741912762298,2.44518,1872.0,1871.9,1.3196]
[1741912762499,1.06883,1871.9,1871.8,3.21580897]
[1741912762699,2.37953,1871.9,1871.8,3.21580897]
[1741912762899,1.3107,1871.9,1871.8,3.21580897]
[1741912763206,1.3107,1871.9,1871.8,4.84464695]
[1741912763406,1.3107,1871.9,1871.8,5.60429897]
[1741912766604,1.3107,1871.9,1871.8,6.16404051]
[1741912766804,1.3107,1871.9,1871.8,6.16404195]
[1741912766999,1.3107,1871.9,1871.8,6.164047]
[1741912767503,2.37953,1871.9,1871.8,0.00800897]
[1741912771402,3.03423,1871.9,1871.8,0.00800897]
[1741912773411,1.9654,1871.9,1871.8,1.07689897]
[1741912773602,3.7357,1871.9,1871.8,1.07689897]
[1741912773804,3.7357,1871.9,1871.8,1.63779564]
[1741912774410,3.7357,1871.9,1871.8,2.99639564]
[1741912774602,3.7357,1871.9,1871.8,1.92750564]
[1741912774802,4.80453,1871.9,1871.8,1.92771094]
[1741912775012,4.80453,1871.9,1871.8,2.99660094]
[1741912775510,3.7357,1871.9,1871.8,2.99660094]
[1741912776808,4.80453,1871.9,1871.8,1.92820049]
[1741912777402,4.80453,1871.9,1871.8,2.82713941]
[1741912777802,3.7357,1871.9,1871.2,27.80863778]
[1741912778013,1.06916,1871.4,1871.3,0.56211105]
[1741912778307,1.06925,1871.2,1871.0,4.6073]
[1741912778810,1.3573,1871.1,1871.0,5.67665]
[1741912779003,1.3573,1871.1,1871.0,6.57122648]
[1741912779201,1.3573,1871.1,1871.0,3.36342648]
[1741912779809,0.709,1871.3,1871.0,5.50187648]
[1741912780011,2.425,1871.5,1871.2,3.2078]
[1741912780211,1.3573,1871.4,1871.0,3.2078]
[1741912780516,1.06927,1871.2,1871.1,2.21539953]
[1741912781007,1.06927,1871.2,1871.1,1.3209]
[1741912781209,1.06919,1871.3,1871.1,1.3209]
[1741912781412,1.3207,1871.2,1871.1,1.3209]
[1741912782102,1.3207,1871.2,1871.1,2.39019]
[1741912784307,4.82795,1871.6,1871.3,1.06913]
[1741912784516,1.3246,1871.4,1871.3,1.06913]
[1741912784708,1.3246,1871.4,1871.3,2.40203]
[1741912785106,3.7589,1871.6,1871.3,1.3329]
[1741912785406,1.3246,1871.5,1871.4,1.3329]
[1741912785613,1.0692,1871.3,1871.1,1.06928]
[1741912785812,1.3246,1871.2,1871.1,1.06928]
[1741912786212,1.3246,1871.2,1871.1,1.3329]
[1741912786413,1.3246,1871.2,1871.1,2.40219]
[1741912786913,4.82795,1871.6,1871.4,1.0691]
[1741912787109,1.3967,1871.5,1871.2,2.0773]
[1741912787303,1.3967,1871.5,1871.3,2.47194]
[1741912787304,2.46576,1871.5,1871.3,2.47194]
[1741912787514,2.46576,1871.5,1871.4,1.4028]
[1741912787814,1.06918,1871.3,1871.1,4.27705]
[1741912788016,1.06918,1871.3,1871.1,2.47205]
[1741912788210,1.06918,1871.3,1871.1,1.4028]
[1741912788415,6.9667,1871.6,1871.1,5.67986]
[1741912788613,1.0692,1871.3,1871.1,4.6106]
[1741912788813,1.0692,1871.3,1871.2,1.4028]
[1741912789423,6.9667,1871.6,1871.3,1.06917]
[1741912789424,1.06908,1871.5,1871.3,1.06917]
[1741912789719,1.06908,1871.5,1871.4,1.4092]
[1741912791132,4.82794,1871.6,1871.4,1.4092]
[1741912791317,4.82794,1871.6,1871.4,2.47828]
[1741912791619,1.06906,1871.5,1871.4,1.4092]
[1741912792010,4.82795,1871.6,1871.4,1.4092]
[1741912792218,4.82795,1871.6,1871.4,2.47831]
[1741912792407,3.7589,1871.6,1871.4,2.47831]
[1741912792611,3.7589,1871.6,1871.5,1.3091]
[1741912792806,4.82791,1871.6,1871.5,1.3091]
[1741912794014,3.7589,1871.6,1871.5,1.3091]
[1741912794319,4.82791,1871.6,1871.5,1.3091]
[1741912795018,0.6582,1871.6,1871.5,1.3091]
[1741912795224,2.425,1871.7,1871.6,1.06898]
[1741912795421,1.06885,1871.9,1871.7,2.37802]
[1741912795716,1.06885,1871.9,1871.8,1.4216]
[1741912795922,1.06885,1871.9,1871.8,1.980174]
[1741912796525,3.1418,1872.0,1871.8,1.980174]
[1741912796819,4.21061,1872.0,1871.9,1.4216]
[1741912797420,1.78561,1872.0,1871.9,1.4216]
[1741912797627,3.15020897,1872.1,1871.9,1.4216]
[1741912798328,1.06878,1872.0,1871.9,1.4216]
[1741912799221,4.21897897,1872.1,1871.9,1.4216]
[1741912800324,4.21897897,1872.1,1872.0,1.06878]
[1741912800325,0.72520897,1872.1,1872.0,1.06878]
[1741912800629,0.00800897,1872.1,1872.0,1.06878]
[1741912800825,0.00800897,1872.1,1872.0,3.03923144]
[1741912801531,0.00800897,1872.1,1872.0,2.48098]
[1741912802032,0.00800897,1872.1,1872.0,3.03904661]
[1741912802324,0.7165,1872.6,1872.5,1.06849]
[1741912802528,10.8989,1873.1,1872.8,1.0683]
[1741912802728,2.425,1873.0,1872.8,1.06828]
[1741912802924,4.5912,1873.1,1872.9,1.4247]
[1741912803127,2.66987,1873.5,1873.1,1.0681]
[1741912803128,5.956,1873.5,1873.1,1.0681]
[1741912803431,2.425,1873.4,1872.9,3.2078]
[1741912803624,23.5919,1873.4,1873.1,0.00800897]
[1741912803824,24.65993,1873.4,1873.1,0.00800897]
[1741912804026,1.06804,1873.3,1873.1,1.43270897]
[1741912804535,1.4146,1873.2,1873.1,1.43270897]
[1741912805230,2.48269,1873.2,1873.1,0.00800897]
[1741912805618,3.0919,1873.4,1873.1,0.00800897]
[1741912805818,4.87139,1873.4,1873.1,4.28393897]
[1741912806141,3.8034,1873.4,1873.1,3.21580897]
[1741912806331,1.06809,1873.2,1873.1,0.00800897]
[1741912808134,2.48559,1873.2,1873.1,0.00800897]
[1741912810130,2.48559,1873.2,1872.7,1.3878]
[1741912810131,1.06832,1872.8,1872.7,1.3878]
[1741912810436,2.424,1873.0,1872.7,1.3878]
[1741912810627,1.4175,1872.9,1872.7,1.3878]
[1741912811025,1.4175,1872.9,1872.8,1.06832]
[1741912811232,1.4175,1872.9,1872.7,2.45614]
[1741912811434,1.4175,1872.9,1872.7,1.39580897]
[1741912811631,1.4175,1872.9,1872.7,2.46414897]
[1741912811832,2.48577,1872.9,1872.7,1.39580897]
[1741912812032,1.06832,1872.8,1872.7,1.39580897]
[1741912812329,2.42682,1872.8,1872.7,0.00800897]
[1741912813736,1.3585,1872.8,1872.7,0.00800897]
[1741912814033,2.42682,1872.8,1872.7,1.43370897]
[1741912814830,1.3585,1872.8,1872.7,1.43370897]
[1741912815038,3.0837,1873.0,1872.8,1.06827]
[1741912815328,4.4476,1873.0,1872.9,1.4257]
[1741912815934,5.51581,1873.0,1872.9,1.4257]
[1741912816829,4.4476,1873.0,1872.9,1.4257]
[1741912817037,5.51581,1873.0,1872.9,1.4257]
[1741912817535,1.3639,1873.0,1872.9,4.6335]
[1741912817737,1.4306,1873.2,1872.9,1.4257]
[1741912818034,1.4306,1873.0,1872.8,1.06828]
[1741912818337,2.49881,1873.0,1872.9,3.2078]
[1741912818536,2.49881,1873.0,1872.8,1.06828]
[1741912818738,1.4306,1872.9,1872.8,1.06832]
[1741912819039,1.06818,1873.1,1872.8,3.2078]
[1741912819237,1.4306,1873.1,1872.8,3.2078]
[1741912819430,1.06824,1873.0,1872.8,4.27611]
[1741912819638,2.424,1873.3,1872.8,3.2078]
[1741912819949,1.4306,1873.2,1873.1,1.06815]
[1741912820239,1.4306,1873.2,1873.1,1.74545]
[1741912820636,1.4306,1873.2,1873.1,2.45115]
[1741912821233,4.14502,1873.4,1873.1,1.383]
[1741912821438,5.55462,1873.4,1873.2,1.06805]
[1741912821638,3.12962,1873.4,1873.2,4.27585]
[1741912821843,0.00800897,1873.5,1873.4,1.06798]
[1741912822026,1.41760897,1873.5,1873.2,3.2078]
[1741912822539,1.068,1873.4,1873.2,1.06806]
[1741912822740,1.4096,1873.3,1873.2,1.06806]
[1741912822934,2.43500897,1873.5,1873.2,3.2078]
[1741912823133,2.43500897,1873.5,1873.4,4.27578]
[1741912823540,3.75310897,1873.5,1873.4,4.27578]
[1741912824137,0.00800897,1873.5,1873.4,4.27578]
[1741912826237,0.00800897,1873.5,1873.4,4.83052208]
[1741912826443,0.00800897,1873.5,1873.4,4.83079055]
[1741912827442,0.00800897,1873.5,1873.4,4.27578]
[1741912828342,0.00800897,1873.5,1873.4,1.06798]
[1741912828550,0.00800897,1873.5,1873.4,4.27578]
[1741912828851,1.38040897,1873.5,1873.4,3.2078]
[1741912829038,2.44832897,1873.5,1873.3,1.06799]
[1741912829346,1.38040897,1873.5,1873.4,4.27578]
[1741912829547,0.00800897,1873.5,1873.4,4.27578]
[1741912829752,0.00800897,1873.5,1873.4,4.83159069]
[1741912830146,0.6864,1874.0,1873.5,2.66976]
[1741912830334,0.6864,1874.0,1873.9,1.06769]
[1741912830538,1.3532,1874.1,1874.0,1.06764]
[1741912830735,4.94708,1874.2,1873.7,3.62679838]
[1741912830736,0.6717,1874.2,1874.1,1.06758]
[1741912830942,1.06752,1874.2,1874.0,1.06761]
[1741912831150,1.06773,1873.9,1873.7,1.06779]
[1741912831539,0.68760897,1874.3,1873.9,1.06769]
[1741912831848,1.06762,1874.1,1873.9,1.06769]
[1741912832047,0.68760897,1874.3,1873.8,3.2078]
[1741912832438,3.11260897,1874.3,1873.9,0.55540749]
[1741912832639,1.06762,1874.1,1873.9,1.06769]
[1741912832839,1.06769,1873.9,1873.8,3.2078]
[1741912833040,0.6807,1874.0,1873.9,1.06769]
[1741912833235,0.6807,1874.0,1873.8,3.2078]
[1741912833440,0.6807,1874.0,1873.9,1.06769]
[1741912833952,1.74837,1874.0,1873.8,4.27553]
[1741912834149,3.11260897,1874.3,1873.8,3.2078]
[1741912834345,1.06754,1874.2,1873.9,2.51456]
[1741912834538,1.06758,1874.1,1874.0,1.4469]
[1741912834853,1.06754,1874.2,1874.0,2.00176307]
[1741912835150,1.06752,1874.2,1874.1,1.3568]
[1741912835346,1.06752,1874.2,1874.0,1.06764]
[1741912835540,1.06752,1874.2,1874.1,1.3568]
[1741912835943,3.77260897,1874.3,1874.1,1.3568]
[1741912836153,4.84010897,1874.3,1874.1,1.3568]
[1741912836542,0.66500897,1874.3,1874.1,2.42434]
[1741912836742,0.66500897,1874.3,1874.1,1.3568]
[1741912836942,0.66500897,1874.3,1874.2,6.18626298]
[1741912836943,0.00800897,1874.3,1874.2,6.18626298]
[1741912837144,1.07547897,1874.3,1874.2,1.3568]
[1741912837748,0.00800897,1874.3,1874.2,1.3568]
[1741912838852,1.06753,1874.2,1874.1,3.2078]
[1741912839053,1.07549897,1874.3,1874.1,6.20538407]
[1741912839254,1.07549897,1874.3,1874.2,1.3765]
[1741912839445,0.00800897,1874.3,1874.2,1.3765]
[1741912839844,1.07547897,1874.3,1874.2,1.3765]
[1741912840060,0.00800897,1874.3,1874.2,2.44402]
[1741912840355,0.00800897,1874.3,1874.2,1.3765]
[1741912840549,1.07547897,1874.3,1874.2,1.3765]
[1741912840750,0.00800897,1874.3,1874.2,1.3765]
[1741912840945,0.00800897,1874.3,1874.2,2.44402]
[1741912841149,0.657,1874.7,1874.6,1.06729]
[1741912841457,0.657,1874.7,1874.6,4.27509]
[1741912842255,1.72424,1874.7,1874.6,3.2078]
[1741912842660,1.72424,1874.7,1874.6,1.3147]
[1741912843155,0.657,1874.7,1874.6,2.38199]
[1741912843453,0.657,1874.7,1874.6,1.3147]
[1741912843657,0.657,1874.7,1874.6,5.58979]
[1741912844058,0.657,1874.7,1874.6,1.3147]
[1741912844059,1.72424,1874.7,1874.6,1.3147]
[1741912844254,0.657,1874.7,1874.6,2.38199]
[1741912844456,1.9888,1874.7,1874.6,1.3147]
[1741912844655,1.9888,1874.7,1874.6,2.38199]
[1741912847355,1.3318,1874.7,1874.6,2.38199]
[1741912848058,0.7203,1874.9,1874.7,1.06723]
[1741912848361,1.4425,1874.8,1874.7,2.42234]
[1741912848560,1.4425,1874.8,1874.7,1.3551]
[1741912848753,1.4425,1874.8,1874.7,2.42234]
[1741912849155,53.1202,1875.0,1874.7,1.3551]
[1741912849156,50.0,1875.0,1874.7,1.3551]
[1741912849360,51.06708,1875.0,1874.8,5.63005]
[1741912849552,51.06708,1875.0,1874.8,4.27495]
[1741912849757,50.0,1875.0,1874.8,3.2078]
[1741912849957,50.0,1875.0,1874.9,1.06712]
[1741912850158,50.0,1875.0,1874.9,1.62171013]
[1741912850658,51.4451,1875.0,1874.9,3.03951013]
[1741912850960,50.0,1875.0,1874.9,3.03951013]
[1741912851155,43.01797993,1875.0,1874.9,3.926419]
[1741912851363,43.01797993,1875.0,1874.9,4.5092356]
[1741912851758,19.45904774,1875.0,1874.9,9.4342356]
[1741912852065,14.83734774,1875.0,1874.9,10.03748026]
[1741912852273,7.74e-06,1875.0,1874.9,9.86807946]
[1741912852454,7.74e-06,1875.0,1874.9,10.47115677]
[1741912852764,7.74e-06,1875.0,1874.9,9.86807946]
[1741912854061,7.74e-06,1875.0,1874.9,7.36575438]
[1741912854561,7.74e-06,1875.0,1874.9,3.92409392]
[1741912854867,1.06707774,1875.0,1874.9,1.43917392]
[1741912855160,7.74e-06,1875.0,1874.9,1.62063944]
[1741912855464,1.37050774,1875.0,1874.9,2.50655048]
[1741912855666,1.37050774,1875.0,1874.9,3.85995048]
[1741912855860,1.37050774,1875.0,1874.9,2.97403944]
[1741912856168,1.37050774,1875.0,1874.9,3.85991029]
[1741912856465,7.74e-06,1875.0,1874.9,4.44212455]
[1741912856661,7.74e-06,1875.0,1874.9,3.85991029]
[1741912856860,7.74e-06,1875.0,1874.9,4.44213443]
[1741912857060,7.74e-06,1875.0,1874.9,3.85991029]
[1741912857460,7.74e-06,1875.0,1874.9,1.62063944]
[1741912857665,7.74e-06,1875.0,1874.9,1.06712]
[1741912857865,7.74e-06,1875.0,1874.9,1.62087237]
[1741912858068,7.74e-06,1875.0,1874.9,1.06712]
[1741912858465,1.41770774,1875.0,1874.9,1.06712]
[1741912858862,1.41770774,1875.0,1874.9,1.62100958]
[1741912859566,1.41770774,1875.0,1874.9,3.87100332]
[1741912859766,1.41770774,1875.0,1874.9,3.87114799]
[1741912859964,1.41770774,1875.0,1874.9,2.98459869]
[1741912860364,1.41770774,1875.0,1874.9,3.87144784]
[1741912860564,1.4316,1875.3,1875.2,1.06695]
[1741912860874,1.4316,1875.3,1875.2,1.62099724]
[1741912861271,1.4316,1875.3,1875.2,2.98439724]
[1741912861466,1.06695,1875.2,1874.9,3.2078]
[1741912861663,1.4316,1875.1,1875.0,1.62123314]
[1741912861862,1.4316,1875.1,1875.0,1.06707]
[1741912862171,1.4316,1875.1,1874.9,3.2078]
[1741912862367,2.49863,1875.1,1874.9,4.27488]
[1741912862571,0.684,1875.0,1874.9,4.27488]
[1741912862870,2.0743,1875.0,1874.9,4.82999084]
[1741912863076,2.0743,1875.0,1874.9,4.82986564]
[1741912864470,2.0743,1875.0,1874.9,4.83037219]
[1741912864667,2.7841,1875.0,1874.9,4.65205536]
[1741912864874,2.7841,1875.0,1874.9,5.71920878]
[1741912865068,2.7841,1875.0,1874.9,5.71934968]
[1741912866875,2.7841,1875.0,1874.9,4.27492]
[1741912867072,2.7841,1875.0,1874.9,5.72006563]
[1741912868074,1.3903,1875.0,1874.9,6.30479301]
[1741912868275,1.3903,1875.0,1874.9,10.16796014]
[1741912868575,1.3903,1875.0,1874.9,8.27372031]
[1741912868966,1.3903,1875.0,1874.9,7.66837069]
[1741912869777,1.3903,1875.0,1874.9,6.30577069]
[1741912870370,2.45737,1875.0,1874.9,5.23865069]
[1741912870568,2.45737,1875.0,1874.9,5.72081333]
[1741912870569,1.3903,1875.0,1874.9,5.72081333]
[1741912870781,1.3903,1875.0,1874.9,6.30642968]
[1741912870964,1.3903,1875.0,1874.9,6.30632802]
[1741912871577,1.3903,1875.0,1874.9,7.66922802]
[1741912871779,1.3903,1875.0,1874.9,8.38612802]
[1741912872675,0.7172,1875.3,1874.9,9.10482802]
[1741912872881,1.3143,1875.2,1875.1,1.06701]
[1741912873172,1.3143,1875.2,1875.1,8.27800683]
[1741912873480,1.3143,1875.2,1875.1,7.67135146]
[1741912874377,1.3143,1875.2,1875.1,6.30845146]
[1741912874572,2.38125,1875.2,1875.1,5.24144146]
[1741912874771,1.3143,1875.2,1875.1,5.16632054]
[1741912874968,2.38125,1875.2,1875.1,4.65648993]
[1741912875173,2.38125,1875.2,1875.1,1.44868993]
[1741912875374,2.38125,1875.2,1875.1,1.44909891]
[1741912875678,1.3143,1875.2,1875.1,1.62418939]
[1741912875981,1.3143,1875.2,1875.1,2.51607786]
[1741912876180,2.0123,1875.2,1875.1,1.62418939]
[1741912876476,3.07925,1875.2,1875.1,0.55717939]
[1741912876775,2.0123,1875.2,1875.1,0.55772467]
[1741912876977,3.07925,1875.2,1875.1,0.55772467]
[1741912877172,1.06706,1875.1,1874.9,1.06711]
[1741912877377,1.76786,1875.1,1875.0,0.89274935]
[1741912877986,1.76786,1875.1,1874.9,1.06711]
[1741912878170,0.7008,1875.1,1874.8,3.2078]
[1741912878480,0.7008,1875.1,1874.6,0.00800897]
[1741912878685,3.4991,1875.0,1874.8,1.06717]
[1741912879385,1.06712,1874.9,1874.7,4.275]